[Event "Lidkoping Open 2019"]
[Site "Lidkoping"]
[Date "2019.08.24"]
[Round "2.6"]
[White "Bermann, Martin"]
[Black "Andersson, Fredrik"]
[Result "0-1"]
[ECO "B41"]
[WhiteElo "1889"]
[BlackElo "2264"]
[Annotator "ChessBase"]
[PlyCount "76"]
[EventDate "2019.08.19"]
[EventType "swiss"]
[EventCountry "SWE"]
[SourceTitle "playchess.com"]
[Source "ChessBase"]
[SourceQuality "1"]
[TimeControl "2700+10"]

1. e4 {[%emt 0:00:00]} c5 {[%emt 0:00:00]} 2. Nf3 {[%emt 0:00:00]} e6 {[%emt 0:00:00]} 3. c4 {[%emt 0:00:00]} d6 {[%emt 0:00:54]} 4. d4 {[%emt 0:00:07]} cxd4 {[%emt 0:00:03]} 5. Nxd4 {[%emt 0:00:03]} Nf6 {[%emt 0:00:31]} 6. Nc3 {[%emt 0:00:06]} a6 {[%emt 0:00:48]} 7. Be2 {[%emt 0:00:27]} Be7 {[%emt 0:00:20]} 8. O-O {[%emt 0:00:10]} O-O {[%emt 0:00:31]} 9. Be3 {[%emt 0:00:10]} b6 {[%emt 0:00:55]} 10. f4 {[%emt 0:00:35]} Qc7 {[%emt 0:02:00]} 11. Rc1 {[%emt 0:02:18]} Bb7 {[%emt 0:01:38]} 12. Bf3 {[%emt 0:01:09]} Nbd7 {[%emt 0:01:15]} 13. b3 {[%emt 0:00:45]} Nc5 {[%emt 0:01:37]} 14. Qc2 {[%emt 0:02:33]} Rfe8 {[%emt 0:00:16]} 15. Rfe1 {[%emt 0:04:53]} Bf8 {[%emt 0:00:23]} 16. Bf2 {[%emt 0:01:26]} Rad8 {[%emt 0:02:21]} 17. Rcd1 {[%emt 0:03:02]} Qb8 {[%emt 0:02:04]} 18. Qe2 {[%emt 0:01:03]} Qa8 {[%emt 0:02:22]} 19. Nc2 {[%emt 0:03:53]} Rc8 {[%emt 0:03:52]} 20. Bh4 {[%emt 0:04:01]} b5 {[%emt 0:05:37]} 21. e5 {[%emt 0:06:18]} Bxf3 {[%emt 0:01:42]} 22. Qxf3 {[%emt 0:00:07]} Qxf3 {[%emt 0:00:12]} 23. gxf3 {[%emt 0:00:02]} dxe5 {[%emt 0:04:30]} 24. fxe5 {[%emt 0:00:03]} Nh5 {[%emt 0:00:04]} 25. b4 {[%emt 0:01:35]} Na4 {[%emt 0:00:05]} 26. Nxa4 {[%emt 0:00:15]} Rxc4 {[%emt 0:00:01]} 27. Nd4 {[%emt 0:03:29]} bxa4 {[%emt 0:00:21]} 28. a3 {[%emt 0:00:09]} Rc3 {[%emt 0:01:41]} 29. Ra1 {[%emt 0:00:25]} Nf4 {[%emt 0:00:36]} 30. Re4 {[%emt 0:00:38]} Nd5 {[%emt 0:00:23]} 31. Kf2 {[%emt 0:01:31]} Rec8 {[%emt 0:00:07]} 32. Bg5 {[%emt 0:00:42]} R3c4 {[%emt 0:00:58]} 33. Bd2 {[%emt 0:00:12]} Rd8 {[%emt 0:00:55]} 34. Be3 {[%emt 0:01:01]} Nxe3 {[%emt 0:01:36]} 35. Kxe3 {[%emt 0:00:07]} Rdc8 {[%emt 0:00:43]} 36. Ne2 {[%emt 0:00:23]} Rc2 {[%emt 0:00:13]} 37. Rd4 {[%emt 0:00:25]} a5 {[%emt 0:00:30]} 38. bxa5 {[%emt 0:00:31]} Bc5 {[%emt 0:00:04]} 0-1

[Event "Lidkoping Open 2019"]
[Site "Lidkoping"]
[Date "2019.08.24"]
[Round "2.7"]
[White "Madebrink, Lars"]
[Black "Mathisen, Runar"]
[Result "1-0"]
[ECO "B22"]
[WhiteElo "2147"]
[BlackElo "1868"]
[Annotator "NA"]
[PlyCount "77"]
[EventDate "2019.08.19"]
[EventType "swiss"]
[EventCountry "SWE"]
[SourceTitle "playchess.com"]
[Source "ChessBase"]
[SourceQuality "1"]
[TimeControl "2700+10"]

1. e4 {[%emt 0:00:00]} c5 {[%emt 0:00:00]} 2. Nf3 {[%emt 0:00:00]} Nc6 {[%emt 0:00:00]} 3. c3 {[%emt 0:00:53]} d5 {[%emt 0:45:30]} 4. exd5 {[%emt 0:00:24]} Qxd5 {[%emt 0:00:00]} 5. d4 {[%emt 0:00:07]} g6 {[%emt 0:00:00]} 6. Be2 {[%emt 0:01:38]} Bg7 {[%emt 0:00:00]} 7. c4 {[%emt 0:01:23]} Qd6 {[%emt 0:00:00]} 8. d5 {[%emt 0:00:25]} Nd4 {[%emt 0:00:00]} 9. Nxd4 {[%emt 0:00:42]} Bxd4 {[%emt 0:00:00]} 10. Nd2 {[%emt 0:02:42]} Bf5 {[%emt 0:00:00]} 11. O-O {[%emt 0:02:45]} h5 {[%emt 0:00:00]} 12. Nf3 {[%emt 0:01:54]} Bg7 {[%emt 0:00:00]} 13. Bd3 {[%emt 0:00:34]} Nh6 {[%emt 0:00:00]} 14. Re1 {[%emt 0:01:04]} O-O {[%emt 0:00:00]} 15. Bxh6 {[%emt 0:03:16]} Bxh6 {[%emt 0:00:00]} 16. Bxf5 {[%emt 0:00:25]} gxf5 {[%emt 0:00:00]} 17. Qc2 {[%emt 0:00:16]} Qf6 {[%emt 0:00:00]} 18. Re5 {[%emt 0:02:05]} e6 {[%emt 0:00:00]} 19. dxe6 {[%emt 0:00:09]} fxe6 {[%emt 0:00:00]} 20. Rae1 {[%emt 0:00:13]} Rfe8 {[%emt 0:00:00]} 21. Rxc5 {[%emt 0:00:09]} Bf8 {[%emt 0:00:00]} 22. Rce5 {[%emt 0:02:53]} Bd6 {[%emt 0:00:00]} 23. R5e2 {[%emt 0:00:02]} Bb4 {[%emt 0:00:00]} 24. Rd1 {[%emt 0:03:00]} Re7 {[%emt 0:00:13]} 25. Ne5 {[%emt 0:00:32]} Rg7 {[%emt 0:00:33]} 26. Rd3 {[%emt 0:01:14]} Rd8 {[%emt 0:00:49]} 27. Rxd8+ {[%emt 0:00:52]} Qxd8 {[%emt 0:00:01]} 28. g3 {[%emt 0:00:42]} h4 {[%emt 0:00:21]} 29. Nd3 {[%emt 0:01:21]} hxg3 {[%emt 0:00:15]} 30. hxg3 {[%emt 0:00:37]} Qd4 {[%emt 0:00:57]} 31. Nxb4 {[%emt 0:06:24]} Rxg3+ {[%emt 0:00:02]} 32. Kf1 {[%emt 0:00:01]} Rh3 {[%emt 0:00:09]} 33. Rxe6 {[%emt 0:00:12]} Qg4 {[%emt 0:00:40]} 34. Ke1 {[%emt 0:00:17]} Rh1+ {[%emt 0:00:12]} 35. Kd2 {[%emt 0:00:11]} Qf4+ {[%emt 0:00:22]} 36. Kd3 {[%emt 0:00:57]} Rh3+ {[%emt 0:00:31]} 37. Re3 {[%emt 0:10:51]} Qe4+ {[%emt 0:00:35]} 38. Kc3 {[%emt 0:00:10]} Qe5+ {[%emt 0:00:10]} 39. Kb3 {[%emt 0:00:10]} 1-0

[Event "Lidkoping Open 2019"]
[Site "Lidkoping"]
[Date "2019.08.24"]
[Round "2.8"]
[White "Harstad, Christian"]
[Black "Ask, Josef"]
[Result "0-1"]
[ECO "E92"]
[WhiteElo "1891"]
[BlackElo "2136"]
[Annotator "ChessBase"]
[PlyCount "74"]
[EventDate "2019.08.19"]
[EventType "swiss"]
[EventCountry "SWE"]
[SourceTitle "playchess.com"]
[Source "ChessBase"]
[SourceQuality "1"]
[TimeControl "2700+10"]

1. d4 {[%emt 0:00:00]} Nf6 {[%emt 0:00:00]} 2. c4 {[%emt 0:00:00]} g6 {[%emt 0:00:11]} 3. Nc3 {[%emt 0:00:00]} Bg7 {[%emt 0:00:11]} 4. e4 {[%emt 0:00:14]} d6 {[%emt 0:00:10]} 5. Nf3 {[%emt 0:00:07]} O-O {[%emt 0:00:08]} 6. Be2 {[%emt 0:00:03]} e5 {[%emt 0:00:09]} 7. d5 {[%emt 0:00:51]} a5 {[%emt 0:00:14]} 8. Bg5 {[%emt 0:00:11]} h6 {[%emt 0:00:08]} 9. Bh4 {[%emt 0:00:30]} Na6 {[%emt 0:00:12]} 10. Nd2 {[%emt 0:00:27]} Bd7 {[%emt 0:00:18]} 11. O-O {[%emt 0:04:07]} Qe8 {[%emt 0:00:25]} 12. b3 {[%emt 0:01:10]} Nh7 {[%emt 0:00:19]} 13. a3 {[%emt 0:02:07]} h5 {[%emt 0:00:15]} 14. f3 {[%emt 0:00:46]} Bh6 {[%emt 0:00:18]} 15. Rb1 {[%emt 0:00:58]} Be3+ {[%emt 0:00:22]} 16. Bf2 {[%emt 0:00:59]} Bxf2+ {[%emt 0:00:24]} 17. Rxf2 {[%emt 0:00:06]} Nc5 {[%emt 0:00:12]} 18. Qc2 {[%emt 0:01:24]} Qe7 {[%emt 0:00:43]} 19. Kh1 {[%emt 0:07:42]} h4 {[%emt 0:01:09]} 20. b4 {[%emt 0:04:46]} axb4 {[%emt 0:00:16]} 21. axb4 {[%emt 0:00:07]} Na4 {[%emt 0:00:10]} 22. Nxa4 {[%emt 0:06:20]} Rxa4 {[%emt 0:00:10]} 23. c5 {[%emt 0:00:10]} Rfa8 {[%emt 0:00:10]} 24. cxd6 {[%emt 0:00:10]} cxd6 {[%emt 0:00:10]} 25. Nc4 {[%emt 0:00:10]} Ra2 {[%emt 0:00:10]} 26. Qb3 {[%emt 0:00:10]} Bb5 {[%emt 0:00:10]} 27. Nb2 {[%emt 0:00:10]} R8a3 {[%emt 0:00:10]} 28. Qc2 {[%emt 0:00:10]} Bxe2 {[%emt 0:00:10]} 29. Rxe2 {[%emt 0:00:10]} Qg5 {[%emt 0:00:10]} 30. Ree1 {[%emt 0:00:10]} Nf6 {[%emt 0:00:10]} 31. Rg1 {[%emt 0:00:10]} Nh5 {[%emt 0:00:10]} 32. Qc8+ {[%emt 0:00:10]} Kg7 {[%emt 0:00:10]} 33. Nc4 {[%emt 0:00:10]} Rc3 {[%emt 0:00:10]} 34. Qd7 {[%emt 0:00:10]} Ng3+ {[%emt 0:00:10]} 35. hxg3 {[%emt 0:00:10]} hxg3 {[%emt 0:00:10]} 36. Nxd6 {[%emt 0:00:10]} Qh4+ {[%emt 0:00:10]} 37. Qh3 {[%emt 0:00:10]} Qxh3+ {[%emt 0:00:10]} 0-1

[Event "Lidkoping Open 2019"]
[Site "Lidkoping"]
[Date "2019.08.24"]
[Round "2.9"]
[White "Staunsbjerg, Valdemar A"]
[Black "Friberg, Hans"]
[Result "1/2-1/2"]
[ECO "C06"]
[WhiteElo "1832"]
[BlackElo "2129"]
[Annotator "NA"]
[PlyCount "79"]
[EventDate "2019.08.19"]
[EventType "swiss"]
[EventCountry "SWE"]
[SourceTitle "playchess.com"]
[Source "ChessBase"]
[SourceQuality "1"]
[TimeControl "2700+10"]

1. d4 {[%emt 0:00:03]} e6 {[%emt 0:00:02]} 2. e4 {[%emt 0:00:34]} d5 {[%emt 0:00:06]} 3. Nd2 {[%emt 0:00:12]} Nf6 {[%emt 0:00:05]} 4. e5 {[%emt 0:00:12]} Nfd7 {[%emt 0:00:05]} 5. Bd3 {[%emt 0:00:09]} c5 {[%emt 0:00:18]} 6. c3 {[%emt 0:00:05]} Nc6 {[%emt 0:00:09]} 7. Ne2 {[%emt 0:00:30]} Be7 {[%emt 0:05:56]} 8. O-O {[%emt 0:01:24]} Qb6 {[%emt 0:00:20]} 9. Nf3 {[%emt 0:00:24]} O-O {[%emt 0:01:15]} 10. a3 {[%emt 0:04:14]} f6 {[%emt 0:02:36]} 11. exf6 {[%emt 0:03:14]} Bxf6 {[%emt 0:03:10]} 12. Nf4 {[%emt 0:09:04]} Nd8 {[%emt 0:03:14]} 13. Qc2 {[%emt 0:00:49]} g6 {[%emt 0:07:11]} 14. Re1 {[%emt 0:07:23]} Rf7 {[%emt 0:06:17]} 15. dxc5 {[%emt 0:07:07]} Nxc5 {[%emt 0:01:34]} 16. Bxg6 {[%emt 0:01:11]} hxg6 {[%emt 0:00:34]} 17. Qxg6+ {[%emt 0:00:14]} Bg7 {[%emt 0:09:42]} 18. Ng5 {[%emt 0:03:17]} Rf6 {[%emt 0:02:03]} 19. Qh7+ {[%emt 0:00:49]} Kf8 {[%emt 0:00:03]} 20. Ng6+ {[%emt 0:00:46]} Rxg6 {[%emt 0:00:01]} 21. Qxg6 {[%emt 0:00:01]} e5 {[%emt 0:00:18]} 22. Qc2 {[%emt 0:03:10]} Nf7 {[%emt 0:00:01]} 23. Nxf7 {[%emt 0:00:34]} Kxf7 {[%emt 0:00:01]} 24. Be3 {[%emt 0:00:37]} Qd6 {[%emt 0:00:16]} 25. Rad1 {[%emt 0:00:24]} Be6 {[%emt 0:00:19]} 26. h3 {[%emt 0:00:31]} Rg8 {[%emt 0:00:08]} 27. b4 {[%emt 0:00:09]} Nd7 {[%emt 0:00:00]} 28. Qe2 {[%emt 0:00:36]} b6 {[%emt 0:00:33]} 29. Bg5 {[%emt 0:00:01]} e4 {[%emt 0:00:45]} 30. Qh5+ {[%emt 0:00:13]} Kf8 {[%emt 0:00:02]} 31. Rxe4 {[%emt 0:00:09]} Nf6 {[%emt 0:00:46]} 32. Bxf6 {[%emt 0:00:22]} Bxf6 {[%emt 0:00:01]} 33. Qh6+ {[%emt 0:00:16]} Kf7 {[%emt 0:00:12]} 34. Rf4 {[%emt 0:00:13]} Rg6 {[%emt 0:00:17]} 35. Qh7+ {[%emt 0:00:01]} Rg7 {[%emt 0:00:00]} 36. Qh5+ {[%emt 0:00:08]} Ke7 {[%emt 0:00:06]} 37. Qh6 {[%emt 0:00:18]} Qe5 {[%emt 0:00:45]} 38. Rf3 {[%emt 0:00:15]} Bg5 {[%emt 0:00:04]} 39. Qh8 {[%emt 0:00:32]} Bf6 {[%emt 0:00:17]} 40. Qa8 {[%emt 0:01:29]} 1/2-1/2

[Event "Lidkoping Open 2019"]
[Site "Lidkoping"]
[Date "2019.08.24"]
[Round "2.10"]
[White "Kjellqvist, Fredrik"]
[Black "Mardell, Jonas"]
[Result "1/2-1/2"]
[ECO "D05"]
[WhiteElo "1778"]
[BlackElo "2059"]
[Annotator "NA"]
[PlyCount "87"]
[EventDate "2019.08.19"]
[EventType "swiss"]
[EventCountry "SWE"]
[SourceTitle "playchess.com"]
[Source "ChessBase"]
[SourceQuality "1"]
[TimeControl "2700+10"]

1. Nf3 {[%emt 0:00:00]} d5 {[%emt 0:00:19]} 2. c4 {[%emt 0:00:00]} e6 {[%emt 0:00:22]} 3. e3 {[%emt 0:00:18]} Nf6 {[%emt 0:00:06]} 4. Be2 {[%emt 0:00:25]} c6 {[%emt 0:00:50]} 5. O-O {[%emt 0:00:24]} Bd6 {[%emt 0:00:22]} 6. d4 {[%emt 0:00:31]} Nbd7 {[%emt 0:01:43]} 7. b3 {[%emt 0:01:02]} O-O {[%emt 0:01:44]} 8. Bb2 {[%emt 0:00:29]} Ne4 {[%emt 0:03:02]} 9. Nbd2 {[%emt 0:00:49]} f5 {[%emt 0:00:07]} 10. Ne5 {[%emt 0:01:08]} Rf6 {[%emt 0:06:21]} 11. Nxe4 {[%emt 0:07:58]} fxe4 {[%emt 0:00:25]} 12. f4 {[%emt 0:02:27]} exf3 {[%emt 0:03:39]} 13. Bxf3 {[%emt 0:03:30]} Qc7 {[%emt 0:04:46]} 14. Ng4 {[%emt 0:02:59]} Rf8 {[%emt 0:00:07]} 15. c5 {[%emt 0:03:51]} Be7 {[%emt 0:00:04]} 16. e4 {[%emt 0:00:37]} b6 {[%emt 0:06:05]} 17. b4 {[%emt 0:05:04]} Ba6 {[%emt 0:01:49]} 18. Be2 {[%emt 0:02:12]} Rxf1+ {[%emt 0:01:41]} 19. Qxf1 {[%emt 0:01:00]} Rf8 {[%emt 0:00:11]} 20. Qe1 {[%emt 0:00:14]} Bxe2 {[%emt 0:04:45]} 21. Qxe2 {[%emt 0:00:02]} h5 {[%emt 0:01:31]} 22. Nf2 {[%emt 0:01:06]} Bh4 {[%emt 0:01:59]} 23. Rf1 {[%emt 0:05:21]} Qf4 {[%emt 0:03:23]} 24. exd5 {[%emt 0:03:56]} exd5 {[%emt 0:00:05]} 25. Nd3 {[%emt 0:00:56]} Qxf1+ {[%emt 0:01:46]} 26. Qxf1 {[%emt 0:00:02]} Rxf1+ {[%emt 0:00:01]} 27. Kxf1 {[%emt 0:00:02]} Bf6 {[%emt 0:00:04]} 28. a4 {[%emt 0:00:20]} bxc5 {[%emt 0:00:24]} 29. Nxc5 {[%emt 0:00:13]} Nxc5 {[%emt 0:00:24]} 30. bxc5 {[%emt 0:00:01]} Kf7 {[%emt 0:00:08]} 31. Ke2 {[%emt 0:00:01]} Ke6 {[%emt 0:00:01]} 32. Kd3 {[%emt 0:00:01]} Kf5 {[%emt 0:00:06]} 33. Ke3 {[%emt 0:00:25]} Bg5+ {[%emt 0:00:28]} 34. Kf3 {[%emt 0:00:04]} g6 {[%emt 0:00:25]} 35. h3 {[%emt 0:00:05]} Bd2 {[%emt 0:00:04]} 36. Ke2 {[%emt 0:00:18]} Bh6 {[%emt 0:00:17]} 37. Kf3 {[%emt 0:00:01]} a6 {[%emt 0:00:01]} 38. Bc3 {[%emt 0:00:03]} Bc1 {[%emt 0:00:04]} 39. Ba1 {[%emt 0:00:23]} Kg5 {[%emt 0:00:49]} 40. g3 {[%emt 0:00:16]} Kf5 {[%emt 0:00:27]} 41. Bc3 {[%emt 0:00:03]} Bh6 {[%emt 0:00:18]} 42. Ba5 {[%emt 0:00:15]} Bc1 {[%emt 0:00:24]} 43. Bc3 {[%emt 0:00:01]} Bh6 {[%emt 0:00:33] Ke3 Kg4+} 44. Kf2 {[%emt 0:03:27] Kf4 Ke3+ Kg4+} 1/2-1/2

[Event "Lidkoping Open 2019"]
[Site "Lidkoping"]
[Date "2019.08.24"]
[Round "2.11"]
[White "Wiklund, Robert"]
[Black "Bergre, Joachim"]
[Result "1/2-1/2"]
[ECO "A57"]
[WhiteElo "1785"]
[BlackElo "1928"]
[Annotator "NA"]
[PlyCount "104"]
[EventDate "2019.08.19"]
[EventType "swiss"]
[EventCountry "SWE"]
[SourceTitle "playchess.com"]
[Source "ChessBase"]
[SourceQuality "1"]
[TimeControl "2700+10"]

1. e4 {[%emt 0:00:00]} d6 {[%emt 0:00:33]} 2. d4 {[%emt 0:00:00]} g6 {[%emt 0:00:04]} 3. c4 {[%emt 0:00:05]} c5 {[%emt 0:01:27]} 4. d5 {[%emt 0:00:08]} b5 {[%emt 0:00:29]} 5. cxb5 {[%emt 0:00:14]} a6 {[%emt 0:00:09]} 6. Nc3 {[%emt 0:00:17]} Bg7 {[%emt 0:00:21]} 7. Nf3 {[%emt 0:00:58]} Nf6 {[%emt 0:00:20]} 8. Bd3 {[%emt 0:00:09]} O-O {[%emt 0:01:48]} 9. O-O {[%emt 0:00:07]} Nbd7 {[%emt 0:00:21]} 10. Qe2 {[%emt 0:03:06]} axb5 {[%emt 0:03:36]} 11. Bxb5 {[%emt 0:02:52]} Ne8 {[%emt 0:00:30]} 12. Be3 {[%emt 0:01:03]} Nc7 {[%emt 0:01:54]} 13. Bd3 {[%emt 0:00:33]} Ba6 {[%emt 0:01:31]} 14. Nd2 {[%emt 0:07:36]} Qb8 {[%emt 0:03:42]} 15. Nc4 {[%emt 0:04:50]} Nb6 {[%emt 0:02:50]} 16. Nxb6 {[%emt 0:01:22]} Qxb6 {[%emt 0:00:27]} 17. Rab1 {[%emt 0:00:31]} Rfb8 {[%emt 0:00:19]} 18. Bxa6 {[%emt 0:01:55]} Qxa6 {[%emt 0:03:52]} 19. Qxa6 {[%emt 0:01:09]} Rxa6 {[%emt 0:00:07]} 20. f4 {[%emt 0:00:49]} Nb5 {[%emt 0:00:20]} 21. e5 {[%emt 0:00:38]} dxe5 {[%emt 0:05:30]} 22. fxe5 {[%emt 0:00:18]} Bxe5 {[%emt 0:00:32]} 23. Bxc5 {[%emt 0:00:10]} Bd4+ {[%emt 0:05:04]} 24. Bxd4 {[%emt 0:00:12]} Nxd4 {[%emt 0:00:04]} 25. Rf4 {[%emt 0:02:35]} Nf5 {[%emt 0:02:22]} 26. a4 {[%emt 0:02:08]} Rb3 {[%emt 0:00:15]} 27. Rc4 {[%emt 0:02:56]} Kg7 {[%emt 0:01:27]} 28. Nb5 {[%emt 0:00:30]} Ra5 {[%emt 0:01:11]} 29. Nd4 {[%emt 0:00:29]} Nxd4 {[%emt 0:00:22]} 30. Rxd4 {[%emt 0:00:02]} Ra6 {[%emt 0:00:13]} 31. Kf2 {[%emt 0:02:16]} h5 {[%emt 0:00:33]} 32. Ke2 {[%emt 0:00:12]} Kf6 {[%emt 0:01:12]} 33. Rf4+ {[%emt 0:00:18]} Ke5 {[%emt 0:00:27]} 34. Rxf7 {[%emt 0:00:05]} Kxd5 {[%emt 0:00:26]} 35. Rxe7 {[%emt 0:00:06]} Rxa4 {[%emt 0:00:31]} 36. Rd1+ {[%emt 0:00:20]} Kc5 {[%emt 0:00:43]} 37. Rd2 {[%emt 0:00:16]} Rg4 {[%emt 0:00:35]} 38. g3 {[%emt 0:00:36]} g5 {[%emt 0:00:33]} 39. Re3 {[%emt 0:01:52]} Rxe3+ {[%emt 0:00:33]} 40. Kxe3 {[%emt 0:00:02]} h4 {[%emt 0:00:42]} 41. gxh4 {[%emt 0:00:14]} Rxh4 {[%emt 0:00:06]} 42. Kd3 {[%emt 0:00:27]} Kb4 {[%emt 0:00:09]} 43. Kc2 {[%emt 0:00:20]} Rc4+ {[%emt 0:00:07]} 44. Kb1 {[%emt 0:00:10]} Rh4 {[%emt 0:00:01]} 45. Rg2 {[%emt 0:00:13]} Rh5 {[%emt 0:01:09]} 46. Ka2 {[%emt 0:00:09]} Ka4 {[%emt 0:00:17]} 47. Rg4+ {[%emt 0:00:22]} Kb5 {[%emt 0:00:04]} 48. Ka3 {[%emt 0:00:11]} Rh3+ {[%emt 0:00:08]} 49. b3 {[%emt 0:00:01]} Rxh2 {[%emt 0:00:02]} 50. Rxg5+ {[%emt 0:00:02]} Kb6 {[%emt 0:00:00]} 51. Ka4 {[%emt 0:00:09]} Rh4+ {[%emt 0:00:11]} 52. b4 {[%emt 0:00:02]} Rh6 {[%emt 0:00:04]} 1/2-1/2

[Event "Lidkoping Open 2019"]
[Site "Lidkoping"]
[Date "2019.08.24"]
[Round "2.12"]
[White "Carlstrom, Niklas"]
[Black "Muntean, Victor"]
[Result "1-0"]
[ECO "D00"]
[WhiteElo "2095"]
[BlackElo "2002"]
[Annotator "NA"]
[PlyCount "51"]
[EventDate "2019.08.19"]
[EventType "swiss"]
[EventCountry "SWE"]
[SourceTitle "playchess.com"]
[Source "ChessBase"]
[SourceQuality "1"]
[TimeControl "2700+10"]

1. d4 {[%emt 0:00:00]} Nf6 {[%emt 0:00:09]} 2. Nc3 {[%emt 0:00:06]} d5 {[%emt 0:00:20]} 3. Bf4 {[%emt 0:00:15]} Bf5 {[%emt 0:00:51]} 4. e3 {[%emt 0:00:34]} e6 {[%emt 0:00:20]} 5. f3 {[%emt 0:00:59]} Nh5 {[%emt 0:01:39]} 6. Qd2 {[%emt 0:03:00]} Nxf4 {[%emt 0:00:54]} 7. exf4 {[%emt 0:00:04]} a6 {[%emt 0:00:36]} 8. O-O-O {[%emt 0:00:49]} c5 {[%emt 0:01:05]} 9. g4 {[%emt 0:01:26]} cxd4 {[%emt 0:02:49]} 10. Qxd4 {[%emt 0:08:10]} Nc6 {[%emt 0:00:07]} 11. Qf2 {[%emt 0:00:14]} Bg6 {[%emt 0:02:04]} 12. f5 {[%emt 0:00:17]} exf5 {[%emt 0:01:37]} 13. Nxd5 {[%emt 0:00:24]} Bd6 {[%emt 0:07:17]} 14. Qe3+ {[%emt 0:04:06]} Ne7 {[%emt 0:04:12]} 15. Nb6 {[%emt 0:01:54]} f4 {[%emt 0:00:23]} 16. Qb3 {[%emt 0:02:56]} Rb8 {[%emt 0:02:26]} 17. Nc4 {[%emt 0:01:24]} Nc8 {[%emt 0:00:32]} 18. Nxd6+ {[%emt 0:03:02]} Nxd6 {[%emt 0:00:12]} 19. Qb4 {[%emt 0:01:54]} Rc8 {[%emt 0:01:23]} 20. Rxd6 {[%emt 0:04:10]} Rxc2+ {[%emt 0:00:10]} 21. Kd1 {[%emt 0:00:06]} Qe7 {[%emt 0:04:47]} 22. Rd4 {[%emt 0:06:49]} Qe3 {[%emt 0:01:32]} 23. Ne2 {[%emt 0:02:02]} a5 {[%emt 0:01:22]} 24. Qd6 {[%emt 0:00:27]} Rc1+ {[%emt 0:01:37]} 25. Nxc1 {[%emt 0:00:08]} Qxf3+ {[%emt 0:00:06]} 26. Ne2 {[%emt 0:04:04]} 1-0

[Event "Lidkoping Open 2019"]
[Site "Lidkoping"]
[Date "2019.08.24"]
[Round "2.13"]
[White "Blomstrom, Lars"]
[Black "Loken, Espen"]
[Result "1-0"]
[ECO "C15"]
[WhiteElo "2132"]
[BlackElo "1805"]
[Annotator "ChessBase"]
[PlyCount "106"]
[EventDate "2019.08.19"]
[EventType "swiss"]
[EventCountry "SWE"]
[SourceTitle "playchess.com"]
[Source "ChessBase"]
[SourceQuality "1"]
[TimeControl "2700+10"]

1. e4 {[%emt 0:00:00]} e6 {[%emt 0:00:00]} 2. d4 {[%emt 0:00:00]} d5 {[%emt 0:00:00]} 3. Nc3 {[%emt 0:00:01]} Bb4 {[%emt 0:00:08]} 4. Nge2 {[%emt 0:00:08]} dxe4 {[%emt 0:00:18]} 5. a3 {[%emt 0:00:01]} Bxc3+ {[%emt 0:00:27]} 6. Nxc3 {[%emt 0:00:03]} Bd7 {[%emt 0:00:27]} 7. Nxe4 {[%emt 0:01:41]} Bc6 {[%emt 0:00:32]} 8. Nc3 {[%emt 0:00:28]} Nf6 {[%emt 0:00:36]} 9. Bf4 {[%emt 0:01:29]} Nbd7 {[%emt 0:00:25]} 10. Qd3 {[%emt 0:01:48]} O-O {[%emt 0:00:36]} 11. O-O-O {[%emt 0:00:42]} Nd5 {[%emt 0:00:23]} 12. Nxd5 {[%emt 0:01:01]} exd5 {[%emt 0:00:23]} 13. Qg3 {[%emt 0:02:23]} Rc8 {[%emt 0:00:50]} 14. Bd3 {[%emt 0:00:28]} f5 {[%emt 0:02:03]} 15. Rde1 {[%emt 0:02:07]} a6 {[%emt 0:02:17]} 16. Bg5 {[%emt 0:02:33]} Nf6 {[%emt 0:00:32]} 17. Bxf5 {[%emt 0:00:38]} Bd7 {[%emt 0:00:13]} 18. Bd3 {[%emt 0:03:14]} c5 {[%emt 0:00:28]} 19. dxc5 {[%emt 0:00:04]} Rxc5 {[%emt 0:00:48]} 20. Re2 {[%emt 0:03:23]} Bb5 {[%emt 0:00:36]} 21. Rhe1 {[%emt 0:00:45]} Bxd3 {[%emt 0:03:10]} 22. Qxd3 {[%emt 0:00:03]} d4 {[%emt 0:03:34]} 23. Bh4 {[%emt 0:05:36]} b5 {[%emt 0:00:40]} 24. Re7 {[%emt 0:01:25]} Qd5 {[%emt 0:01:42]} 25. Bxf6 {[%emt 0:06:40]} Rxf6 {[%emt 0:00:42]} 26. Qg3 {[%emt 0:01:25]} Rf7 {[%emt 0:01:54]} 27. Re8+ {[%emt 0:00:31]} Rf8 {[%emt 0:00:24]} 28. R1e7 {[%emt 0:05:23]} Qg5+ {[%emt 0:00:35]} 29. Qxg5 {[%emt 0:00:12]} Rxg5 {[%emt 0:00:06]} 30. g3 {[%emt 0:00:07]} Rgf5 {[%emt 0:01:30]} 31. f4 {[%emt 0:00:06]} a5 {[%emt 0:00:35]} 32. Kd2 {[%emt 0:00:44]} Rd5 {[%emt 0:00:22]} 33. Rxf8+ {[%emt 0:00:22]} Kxf8 {[%emt 0:00:05]} 34. Re5 {[%emt 0:00:10]} Rd6 {[%emt 0:00:59]} 35. Rxb5 {[%emt 0:00:06]} Rh6 {[%emt 0:00:15]} 36. h4 {[%emt 0:00:15]} Rg6 {[%emt 0:00:01]} 37. Rg5 {[%emt 0:00:11]} Rb6 {[%emt 0:00:11]} 38. b3 {[%emt 0:00:39]} a4 {[%emt 0:00:33]} 39. bxa4 {[%emt 0:00:05]} Ra6 {[%emt 0:00:11]} 40. a5 {[%emt 0:00:11]} h6 {[%emt 0:00:25]} 41. Rf5+ {[%emt 0:00:27]} Ke7 {[%emt 0:00:08]} 42. h5 {[%emt 0:00:08]} g6 {[%emt 0:00:09]} 43. Re5+ {[%emt 0:00:26]} Kf6 {[%emt 0:00:06]} 44. g4 {[%emt 0:00:07]} gxh5 {[%emt 0:01:09]} 45. Rxh5 {[%emt 0:00:09]} Kg7 {[%emt 0:00:05]} 46. Kd3 {[%emt 0:00:43]} Rd6 {[%emt 0:00:05]} 47. Rb5 {[%emt 0:00:12]} Rg6 {[%emt 0:00:16]} 48. g5 {[%emt 0:00:11]} h5 {[%emt 0:00:04]} 49. Rb6 {[%emt 0:01:00]} h4 {[%emt 0:00:12]} 50. Rxg6+ {[%emt 0:00:07]} Kxg6 {[%emt 0:00:01]} 51. Ke2 {[%emt 0:00:01]} Kf5 {[%emt 0:00:12]} 52. Kf3 {[%emt 0:00:01]} Ke6 {[%emt 0:00:09]} 53. a6 {[%emt 0:00:08]} Kd5 {[%emt 0:21:18] Ke4+} 1-0